bitfinex-derivatives/quotes_BNBF0:USTF0_20250126
["timestamp","ask_amount","ask_price","bid_price","bid_amount"]
[1737902484592,0.25260135,684.35,683.71,1.09101233]
[1737902484593,0.25260135,684.35,683.91,1.09101233]
[1737902487293,0.25260135,684.35,683.82,1.09101233]
[1737902490798,0.25260135,684.35,683.8,1.09101233]
[1737902493707,0.25260135,684.35,683.81,1.09101233]
[1737902495007,0.25260135,684.35,683.82,0.26854176]
[1737902495407,0.25260135,684.35,683.81,1.09101233]
[1737902495611,0.25260135,684.35,683.82,0.26854265]
[1737902496110,0.25260135,684.35,683.83,1.09101233]
[1737902496309,0.25260135,684.35,683.84,0.26854265]
[1737902500009,0.25260135,684.35,683.95,1.09101233]
[1737902503606,0.25260135,684.35,683.93,1.09101233]
[1737902506110,0.25260135,684.35,683.92,1.09101233]
[1737902507915,0.25260135,684.35,683.93,0.26854359]
[1737902508116,0.25260135,684.35,683.92,1.09101233]
[1737902508317,0.25260135,684.35,683.93,0.26854359]
[1737902509517,0.25260135,684.35,683.95,1.09101233]
[1737902509712,0.25260135,684.35,683.96,0.26854359]
[1737902510018,0.25260135,684.35,683.95,1.09101233]
[1737902512018,0.25260135,684.35,683.92,1.09101233]
[1737902515421,0.25260135,684.35,683.94,1.09101233]
[1737902518726,0.25260135,684.35,683.95,1.09101233]
[1737902520127,0.25260135,684.35,683.96,0.2685412]
[1737902520626,0.25260135,684.35,683.95,1.09101233]
[1737902520823,0.25260135,684.35,683.96,0.26854291]
[1737902522330,0.25260135,684.35,684.01,1.09101233]
[1737902525832,0.25260135,684.35,684.02,1.09101233]
[1737902534540,0.25260135,684.35,684.01,1.09101233]
[1737902537841,0.25260135,684.35,684.0,1.09101233]
[1737902539951,1.08757032,685.05,684.0,1.09101233]
[1737902541246,1.87257032,685.05,684.0,1.09101233]
[1737902543751,0.785,685.05,684.01,1.09101233]
[1737902547556,0.785,685.05,683.97,1.09101233]
[1737902549751,0.785,685.05,683.95,1.09101233]
[1737902554263,0.785,685.05,683.91,1.09101233]
[1737902559170,0.785,685.05,683.92,0.26850943]
[1737902559568,0.785,685.05,683.91,1.09101233]
[1737902559765,0.785,685.05,683.92,0.26850536]
[1737902563273,0.785,685.05,683.91,1.09101233]
[1737902563473,0.785,685.05,683.92,0.26848583]
[1737902564073,0.785,685.05,683.97,1.09101233]
[1737902566277,0.785,685.05,683.98,0.2684859]
[1737902567372,0.785,685.05,683.94,0.2684859]
[1737902567574,0.785,685.05,683.95,0.2684859]
[1737902567768,0.785,685.05,683.96,0.2684859]
[1737902567970,0.785,685.05,683.97,0.2684859]
[1737902568176,0.785,685.05,683.98,0.2684859]
[1737902568368,0.785,685.05,683.94,0.2684859]
[1737902568570,0.785,685.05,683.95,0.2684859]
[1737902568773,0.785,685.05,683.94,0.2684859]
[1737902568972,0.785,685.05,683.95,0.2684859]
[1737902569172,0.785,685.05,683.94,0.2684859]
[1737902569373,0.785,685.05,683.95,0.2684859]
[1737902569574,0.785,685.05,683.96,0.2684859]
[1737902569876,0.785,685.05,683.97,0.2684859]
[1737902570177,0.785,685.05,683.98,0.2684859]
[1737902570369,0.785,685.05,683.96,1.09101233]
[1737902570575,0.785,685.05,683.97,0.26848879]
[1737902573379,0.785,685.05,684.01,1.09101233]
[1737902573579,0.785,685.05,684.02,0.26848879]
[1737902573977,0.785,685.05,684.01,1.09101233]
[1737902574180,0.785,685.05,684.02,0.26848495]
[1737902575683,0.785,685.05,684.01,1.09101233]
[1737902575879,0.785,685.05,684.03,0.26848608]
[1737902576080,0.785,685.05,683.94,1.5247498]
[1737902576081,0.785,685.05,684.05,1.09101233]
[1737902576285,0.785,685.05,684.06,0.26848608]
[1737902581979,0.785,685.05,684.05,0.26848608]
[1737902582178,0.785,685.05,684.06,0.26848608]
[1737902582380,0.785,685.05,684.05,0.26848608]
[1737902582585,0.785,685.05,684.06,0.26848608]
[1737902582785,0.785,685.05,684.07,0.26848608]
[1737902582985,0.785,685.05,684.08,0.26848608]
[1737902583181,0.785,685.05,684.09,0.26848608]
[1737902583381,0.785,685.05,684.05,0.26848608]
[1737902583582,0.785,685.05,684.04,1.09101233]
[1737902583784,0.785,685.05,684.05,0.26848659]
[1737902584186,0.785,685.05,684.04,1.09101233]
[1737902584380,0.785,685.05,684.05,0.26848597]
[1737902585287,0.785,685.05,684.07,1.09101233]
[1737902585487,0.785,685.05,684.08,0.26848597]
[1737902587887,0.785,685.05,684.1,1.09101233]
[1737902588081,0.785,685.05,684.11,0.268477]
[1737902588691,0.785,685.05,684.1,1.09101233]
[1737902588887,0.785,685.05,684.11,0.2684768]
[1737902590887,0.785,685.05,684.11,1.35948913]
[1737902591090,0.785,685.05,684.12,0.2684768]
[1737902593792,0.785,685.05,684.14,1.09101233]
[1737902594386,0.785,685.05,684.15,0.26847822]
[1737902595487,0.785,685.05,684.14,1.09101233]
[1737902595691,0.785,685.05,684.15,0.26847564]
[1737902596894,0.785,685.05,684.14,1.09101233]
[1737902597495,0.785,685.05,684.18,1.09101233]
[1737902601792,0.785,685.05,684.0,1.09101233]
[1737902601793,0.785,685.05,684.12,1.09101233]
[1737902605495,0.785,685.05,684.11,1.09101233]
[1737902607995,0.785,685.05,684.1,1.09101233]
[1737902608197,0.785,685.05,684.12,0.26847811]
[1737902608505,0.785,685.05,684.1,1.09101233]
[1737902608703,0.785,685.05,684.11,0.26847779]
[1737902611505,0.785,685.05,684.16,1.09101233]
[1737902612199,0.785,685.05,684.17,0.2684736]
[1737902612400,0.785,685.05,684.16,1.09101233]
[1737902612601,0.785,685.05,684.17,0.26847493]
[1737902612801,0.785,685.05,684.16,1.09101233]
[1737902614200,0.785,685.05,684.19,1.09101233]
[1737902618108,0.785,685.05,684.2,1.09101233]
[1737902621606,0.785,685.05,684.21,1.09101233]
[1737902624217,0.785,685.05,684.12,1.09101233]
[1737902627721,0.785,685.05,684.03,1.09101233]
[1737902630325,0.785,685.05,683.99,1.09101233]
[1737902634031,0.785,685.05,683.96,1.09101233]
[1737902637531,0.785,685.05,684.0,1.09101233]
[1737902640235,0.785,685.05,684.0,1.38340999]
[1737902640428,0.785,685.05,684.04,1.09101233]
[1737902640632,0.785,685.05,684.04,1.38339289]
[1737902643129,0.785,685.05,684.05,0.29237628]
[1737902644635,0.785,685.05,684.06,0.2683674]
[1737902644836,0.785,685.05,684.07,0.29236774]
[1737902645036,0.785,685.05,684.08,0.2683674]
[1737902645232,0.785,685.05,684.09,0.29235919]
[1737902648639,0.785,685.05,684.1,0.26837612]
[1737902648834,0.785,685.05,684.11,0.29235064]
[1737902649033,0.785,685.05,684.12,0.26837612]
[1737902649935,0.785,685.05,684.13,0.29234209]
[1737902650138,0.785,685.05,684.14,0.26837612]
[1737902650337,0.785,685.05,684.15,0.29233355]
[1737902650537,0.785,685.05,684.16,0.26837612]
[1737902652236,0.785,685.05,684.15,0.29233355]
[1737902652438,0.785,685.05,684.16,0.26837422]
[1737902666550,0.785,685.05,684.15,0.29233355]
[1737902666749,0.785,685.05,684.16,0.26838385]
[1737902669447,0.785,685.05,684.16,1.35939618]
[1737902669646,0.785,685.05,684.17,0.26838385]
[1737902672053,0.785,685.05,684.16,1.09101233]
[1737902672353,0.785,685.05,684.17,0.26838314]
[1737902673155,0.785,685.05,684.18,1.09101233]
[1737902673356,0.785,685.05,684.19,0.26838471]
[1737902676158,0.785,685.05,684.19,1.35939704]
[1737902676355,0.785,685.05,684.2,0.26838471]
[1737902678459,0.785,685.05,684.19,1.09101233]
[1737902678656,0.785,685.05,684.2,0.26839655]
[1737902679256,0.785,685.05,684.28,1.09101233]
[1737902682665,0.785,685.05,684.15,0.29233355]
[1737902689963,0.785,685.05,684.16,0.26840831]
[1737902691368,0.785,685.05,684.15,0.29233355]
[1737902691970,0.785,685.05,684.16,1.09101233]
[1737902694471,0.785,685.05,684.17,0.26841321]
[1737902695471,0.785,685.05,684.18,0.26841321]
[1737902695672,0.785,685.05,684.15,0.29233355]
[1737902695867,0.785,685.05,684.16,0.26841238]
[1737902697863,0.785,685.05,684.19,1.09101233]
[1737902698071,0.785,685.05,684.2,0.26841238]
[1737902701271,0.785,685.05,684.19,1.09101233]
[1737902702467,0.785,685.05,684.23,1.09101233]
[1737902705072,0.785,685.05,684.16,1.52450488]
[1737902782722,0.785,685.05,684.04,1.09101233]
[1737902784525,0.785,685.05,684.07,1.09101233]
[1737902787937,0.785,685.05,684.06,1.09101233]
[1737902788937,0.785,685.05,684.07,0.26850095]
[1737902789436,0.785,685.05,684.06,1.09101233]
[1737902790435,0.785,685.05,684.07,0.26849917]
[1737902791138,0.785,685.05,684.06,1.09101233]
[1737902793743,0.785,685.05,683.97,1.09101233]
[1737902795743,0.785,685.05,683.98,1.52501707]
[1737902801741,0.785,685.05,683.99,0.26851613]
[1737902801946,0.785,685.05,683.98,1.52501707]
[1737902802139,0.785,685.05,683.99,0.26851849]
[1737902805848,0.785,685.05,683.98,1.52501707]
[1737902806049,0.785,685.05,683.99,0.26852388]
[1737902806248,0.785,685.05,683.98,1.52501707]
[1737902808150,0.785,685.05,683.99,0.26852023]
[1737902808452,0.785,685.05,684.0,0.26852023]
[1737902808650,0.785,685.05,683.99,0.26852023]
[1737902808849,0.785,685.05,683.98,1.52501707]
[1737902809050,0.785,685.05,683.99,0.26852002]
[1737902810251,0.785,685.05,683.98,1.52501707]
[1737902810451,0.785,685.05,683.99,0.26852278]
[1737902811050,0.785,685.05,683.98,1.52501707]
[1737902814452,0.785,685.05,683.99,0.26852372]
[1737902817054,0.785,685.05,683.98,1.52501707]
[1737902821757,0.785,685.05,683.99,0.26852249]
[1737902822057,0.785,685.05,683.98,1.52501707]
[1737902823058,0.785,685.05,683.99,0.268523]
[1737902823458,0.785,685.05,683.98,1.52501707]
[1737902823659,0.785,685.05,683.99,0.26852493]
[1737902824765,0.785,685.05,683.98,1.52501707]
[1737902824959,0.785,685.05,683.99,0.26852493]
[1737902825262,0.785,685.05,683.98,1.52501707]
[1737902825463,0.785,685.05,684.01,1.09101233]
[1737902828763,0.785,685.05,683.98,1.52501707]
[1737902870287,0.785,685.05,683.98,2.6160294]
[1737902872893,1.87257032,685.05,684.0,1.09101233]
[1737902875395,0.785,685.05,684.0,1.09101233]
[1737902878400,1.08757032,685.03,684.02,1.09101233]
[1737902879801,2.13957032,685.03,684.02,1.09101233]
[1737902881100,2.13957032,685.03,684.01,1.09101233]
[1737902881101,1.052,685.03,684.01,1.09101233]
[1737902883903,1.052,685.03,684.03,1.09101233]
[1737902886803,1.052,685.03,684.01,1.09101233]
[1737902889402,1.052,685.03,684.02,1.09101233]
[1737902892905,1.052,685.03,683.98,1.52501707]
[1737902910321,1.052,685.03,683.99,0.26852498]
[1737902911224,1.052,685.03,683.98,1.52501707]
[1737902911419,1.052,685.03,683.99,0.26852268]
[1737902912917,1.052,685.03,683.98,1.52501707]
[1737902913118,1.052,685.03,684.04,1.09101233]
[1737902915524,1.052,685.03,683.96,1.09101233]
[1737902918425,1.052,685.03,683.92,1.09101233]
[1737902921128,1.052,685.03,683.89,1.09101233]
[1737902923231,1.052,685.03,683.9,0.26850279]
[1737902923625,1.052,685.03,683.89,1.09101233]
[1737902924225,1.052,685.03,683.51,0.760078]
[1737902924226,1.052,685.03,683.93,1.09101233]
[1737902924834,1.052,685.03,683.94,0.26848486]
[1737902926933,1.052,685.03,683.95,0.29241903]
[1737902927134,1.052,685.03,683.96,0.26848486]
[1737902927435,1.052,685.03,683.97,0.26845337]
[1737902928537,1.052,685.03,684.0,1.09101233]
[1737902928731,1.052,685.03,684.01,0.26845337]
[1737902931033,1.052,685.03,684.01,1.3594657]
[1737902931233,1.052,685.03,684.02,0.26846225]
[1737902936840,1.052,685.03,684.02,1.35947458]
[1737902937037,1.052,685.03,684.03,0.26846225]
[1737902938044,1.052,685.03,684.04,0.26845867]
[1737902938244,1.052,685.03,684.03,0.26845867]
[1737902943449,1.052,685.03,684.01,0.26845867]
[1737902943647,1.052,685.03,684.02,0.26845867]
[1737902943847,1.052,685.03,684.01,0.26845867]
[1737902944155,1.052,685.03,684.0,1.52473867]
[1737902944356,1.052,685.03,684.01,0.26846459]
[1737902946351,1.052,685.03,684.0,2.615751]
[1737902946553,1.052,685.03,684.01,0.26846377]
[1737902948152,1.052,685.03,684.01,1.3594761]
[1737902948455,1.052,685.03,684.02,0.26846377]
[1737902951852,1.052,685.03,684.0,1.52473867]
[1737902952056,1.052,685.03,684.01,0.26847095]
[1737902958565,1.052,685.03,684.04,1.09101233]
[1737902958864,1.052,685.03,684.05,0.26847095]
[1737902959067,1.052,685.03,684.04,1.09101233]
[1737902961271,1.052,685.03,684.0,1.52473867]
[1737902969279,1.052,685.03,684.01,0.26847816]
[1737902969674,1.052,685.03,684.02,0.26847808]
[1737902969872,1.052,685.03,684.01,0.26847808]
[1737902973174,1.052,685.03,684.07,1.09101233]
[1737902975785,1.052,685.03,684.09,1.09101233]
[1737902978484,1.052,685.03,684.12,1.09101233]
[1737902978680,1.052,685.03,684.13,0.26846606]
[1737902981788,1.052,685.03,684.23,1.09101233]
[1737902985192,1.052,685.03,684.21,1.09101233]
[1737902987895,1.052,685.03,684.18,1.09101233]
[1737902990293,1.052,685.03,684.17,1.09101233]
[1737902995809,1.052,685.03,684.16,1.09101233]
[1737903003315,1.052,685.03,684.12,1.09101233]
[1737903006716,1.052,685.03,684.1,1.09101233]
[1737903010715,1.052,685.03,684.08,1.09101233]
[1737903014718,1.052,685.03,684.09,0.26844492]
[1737903014920,1.052,685.03,684.08,1.09101233]
[1737903015617,1.052,685.03,684.09,0.26844752]
[1737903015822,1.052,685.03,684.09,1.35945985]
[1737903016021,1.052,685.03,684.09,1.09101233]
[1737903017520,1.052,685.03,684.1,0.26845627]
[1737903018122,1.052,685.03,684.09,1.09101233]
[1737903018319,1.052,685.03,684.1,0.26845653]
[1737903021928,1.052,685.03,684.12,1.09101233]
[1737903022123,1.052,685.03,684.13,0.26845653]
[1737903023925,1.052,685.03,684.12,1.09101233]
[1737903025034,1.052,685.03,684.14,1.09101233]
[1737903028336,1.052,685.03,684.07,1.09101233]
[1737903028533,1.052,685.03,684.08,0.26848091]
[1737903028931,1.052,685.03,684.09,0.26848091]
[1737903029132,1.052,685.03,684.1,0.26848091]
[1737903029332,1.052,685.03,684.08,0.26848091]
[1737903029533,1.052,685.03,684.07,1.09101233]
[1737903029733,1.052,685.03,684.09,0.2684843]
[1737903029938,1.052,685.03,684.08,0.2684843]
[1737903030136,1.052,685.03,684.09,0.2684843]
[1737903030338,1.052,685.03,684.08,0.2684843]
[1737903030538,1.052,685.03,684.07,1.09101233]
[1737903030935,1.052,685.03,684.08,0.26848699]
[1737903034738,1.052,685.03,684.06,0.26848699]
[1737903034941,1.052,685.03,684.07,0.26848699]
[1737903035143,1.052,685.03,684.05,1.09101233]
[1737903035144,1.052,685.03,684.08,0.26848699]
[1737903035438,1.052,685.03,684.09,0.26848699]
[1737903035645,1.052,685.03,684.1,0.26848699]
[1737903035839,1.052,685.03,684.06,0.26848699]
[1737903036040,1.052,685.03,684.07,0.26848699]
[1737903036243,1.052,685.03,684.06,0.26848699]
[1737903036438,1.052,685.03,684.07,0.26848699]
[1737903036639,1.052,685.03,684.06,0.26848699]
[1737903036845,1.052,685.03,684.05,1.09101233]
[1737903037346,1.052,685.03,683.96,0.29241476]
[1737903037347,1.052,685.03,684.09,1.09101233]
[1737903039947,1.052,685.03,683.96,0.29241476]
[1737903046861,1.052,685.03,683.97,0.26846629]
[1737903049167,1.052,685.03,683.97,0.56087677]
[1737903049367,1.052,685.03,683.98,0.26846629]
[1737903049569,1.052,685.03,684.03,1.09101233]
[1737903049762,1.052,685.03,684.04,0.26846629]
[1737903050362,1.052,685.03,684.05,0.26844752]
[1737903050567,1.052,685.03,684.04,0.26844752]
[1737903052166,1.052,685.03,684.08,1.09101233]
[1737903054970,1.052,685.03,684.06,1.09101233]
[1737903055270,1.052,685.03,684.07,0.26843407]
[1737903057270,1.052,685.03,684.06,1.09101233]
[1737903058370,1.052,685.03,684.07,1.09101233]
[1737903060572,1.052,685.03,683.97,0.29241048]
[1737903072379,0.29196227,685.02,683.89,1.09101233]
[1737903073480,0.29196227,685.02,683.82,1.09101233]
[1737903073879,1.38396227,685.02,683.82,1.09101233]
[1737903076184,1.38396227,685.02,683.83,1.52529558]
[1737903102704,1.38396227,685.02,683.84,0.26854875]
[1737903104001,1.38396227,685.02,683.83,1.52529558]
[1737903105007,1.38396227,685.02,683.84,0.26855035]
[1737903107810,1.38396227,685.02,683.85,0.26854128]
[1737903108010,1.38396227,685.02,683.84,0.26854128]
[1737903108211,1.38396227,685.02,683.85,0.26854128]
[1737903108407,1.38396227,685.02,683.86,0.26854128]
[1737903108612,1.38396227,685.02,683.84,0.26854128]
[1737903108913,1.38396227,685.02,683.83,1.52529558]
[1737903108914,1.38396227,685.02,683.85,0.26854128]
[1737903109108,1.38396227,685.02,683.84,0.26854128]
[1737903109308,1.38396227,685.02,683.85,0.26854128]
[1737903109505,1.38396227,685.02,683.84,0.26854128]
[1737903116814,1.38396227,685.02,683.83,1.52529558]
[1737903117111,1.38396227,685.02,683.84,0.26854565]
[1737903118618,1.38396227,685.02,683.85,0.26854551]
[1737903118817,1.38396227,685.02,683.86,0.26854551]
[1737903119012,1.38396227,685.02,683.87,0.26854551]
[1737903119215,1.38396227,685.02,683.88,0.26854551]
[1737903119411,1.38396227,685.02,683.84,0.26854551]
[1737903119717,1.38396227,685.02,683.85,0.26854551]
[1737903119918,1.38396227,685.02,683.86,0.26854551]
[1737903120219,1.38396227,685.02,683.87,0.26854551]
[1737903120417,1.38396227,685.02,683.84,0.26854551]
[1737903120619,1.38396227,685.02,683.85,0.26854551]
[1737903120817,1.38396227,685.02,683.83,1.52529558]
[1737903120818,1.38396227,685.02,683.84,0.26854551]
[1737903123519,1.38396227,685.02,683.83,2.61630791]
[1737903123721,1.38396227,685.02,683.84,0.26854236]
[1737903124619,1.38396227,685.02,683.91,1.09101233]
[1737903126919,1.38396227,685.02,683.92,0.26855507]
[1737903127719,1.38396227,685.02,683.91,0.26855507]
[1737903129522,1.38396227,685.02,683.9,1.09101233]
[1737903131225,2.47153259,685.02,683.95,1.09101233]
[1737903134225,1.38396227,685.02,683.89,1.09101233]
[1737903141330,1.38396227,685.02,683.91,1.09101233]
[1737903144626,1.38396227,685.02,683.89,1.09101233]
[1737903145433,1.38396227,685.02,683.9,0.26855212]
[1737903145634,1.38396227,685.02,683.89,1.09101233]
[1737903147737,1.38396227,685.02,683.63,1.09101233]
[1737903147935,1.38396227,685.02,683.64,0.29255163]
[1737903150739,1.38396227,685.02,683.66,1.09101233]
[1737903150938,1.38396227,685.02,683.67,0.29253879]
[1737903156542,1.38396227,685.02,683.68,0.26853969]
[1737903156742,1.38396227,685.02,683.69,0.29253024]
[1737903157041,1.38396227,685.02,683.7,0.26853969]
[1737903157243,1.38396227,685.02,683.71,0.29252168]
[1737903157542,1.38396227,685.02,683.72,0.26853969]
[1737903157741,1.38396227,685.02,683.73,0.26854032]
[1737903159643,1.38396227,685.02,683.93,1.09101233]
[1737903162844,1.38396227,685.02,683.94,1.09101233]
[1737903166848,1.38396227,685.02,683.92,1.09101233]
[1737903168441,1.38396227,685.02,683.93,0.26852863]
[1737903169550,1.38396227,685.02,683.93,1.35954096]
[1737903170049,1.38396227,685.02,683.93,1.09101233]
[1737903172947,1.38396227,685.02,683.84,1.09101233]
[1737903173150,1.38396227,685.02,683.85,0.56092583]
[1737903173349,1.38396227,685.02,683.86,0.56092156]
[1737903173650,1.38396227,685.02,683.87,0.26846404]
[1737903173848,1.38396227,685.02,683.87,0.56091728]
[1737903174045,1.38396227,685.02,683.88,0.26846404]
[1737903174451,1.38396227,685.02,683.89,0.29244469]
[1737903174646,1.38396227,685.02,683.9,0.26846404]
[1737903174949,1.38396227,685.02,683.9,0.56090445]
[1737903175149,1.38396227,685.02,683.91,0.26846404]
[1737903175850,1.38396227,685.02,683.9,0.29244041]
[1737903176050,1.38396227,685.02,683.94,1.09101233]
[1737903176451,1.38396227,685.02,683.95,0.26845959]
[1737903176750,1.38396227,685.02,683.94,1.09101233]
[1737903176951,1.38396227,685.02,683.95,0.26845217]
[1737903177851,1.38396227,685.02,683.94,1.09101233]
[1737903178050,1.38396227,685.02,683.95,0.26844806]
[1737903179052,1.38396227,685.02,683.91,0.26844806]
[1737903179352,1.38396227,685.02,683.92,0.26844806]
[1737903179547,1.38396227,685.02,683.91,0.26844806]
[1737903181145,1.38396227,685.02,683.92,0.26845054]
[1737903181350,1.38396227,685.02,683.9,0.29244041]
[1737903181351,1.38396227,685.02,683.91,0.26845054]
[1737903181553,1.38396227,685.02,683.92,0.26845054]
[1737903181755,1.38396227,685.02,683.91,0.26845054]
[1737903181950,1.38396227,685.02,683.92,0.26845054]
[1737903183355,1.38396227,685.02,683.93,0.26845054]
[1737903183551,1.38396227,685.02,683.91,0.26845054]
[1737903183751,1.38396227,685.02,683.92,0.26845054]
[1737903183949,1.38396227,685.02,683.93,0.26845054]
[1737903184152,1.38396227,685.02,683.94,0.26845054]
[1737903184354,1.38396227,685.02,683.95,0.26845054]
[1737903184554,1.38396227,685.02,683.96,0.26845054]
[1737903184857,1.38396227,685.02,683.97,0.26845054]
[1737903185049,1.38396227,685.02,683.91,0.26845054]
[1737903185249,1.38396227,685.02,683.92,0.26845054]
[1737903185551,1.38396227,685.02,683.93,0.26844753]
[1737903185756,1.38396227,685.02,683.94,0.26844753]
[1737903185955,1.38396227,685.02,683.91,0.26844753]
[1737903186154,1.38396227,685.02,683.92,0.26844753]
[1737903186355,1.38396227,685.02,683.91,0.26844753]
[1737903186555,1.38396227,685.02,683.92,0.26844753]
[1737903186757,1.38396227,685.02,683.91,0.26844753]
[1737903186953,1.38396227,685.02,683.92,0.26844753]
[1737903187163,1.38396227,685.02,683.91,0.26844753]
[1737903189155,1.38396227,685.02,683.95,1.09101233]
[1737903190258,1.38396227,685.02,683.96,0.26844753]
[1737903192360,1.38396227,685.02,683.95,1.09101233]
[1737903192562,1.38396227,685.02,683.9,0.29244041]
[1737903192563,1.38396227,685.02,683.96,0.26845314]
[1737903192756,1.38396227,685.02,683.97,0.26845314]
[1737903192962,1.38396227,685.02,683.98,0.26845314]
[1737903193261,1.38396227,685.02,683.99,0.26845314]
[1737903193461,1.38396227,685.02,683.93,0.26845314]
[1737903196164,1.38396227,685.02,683.95,1.09101233]
[1737903197061,1.38396227,685.02,683.96,0.26845314]
[1737903199964,1.38396227,685.02,683.98,1.09101233]
[1737903200165,1.38396227,685.02,683.99,0.26845314]
[1737903202963,1.38396227,685.02,684.05,1.09101233]
[1737903203564,1.38396227,685.02,684.06,0.26845314]
[1737903204871,1.38396227,685.02,684.05,1.09101233]
[1737903206062,1.38396227,685.02,684.11,1.09101233]
[1737903210071,1.38396227,685.02,684.04,1.09101233]
[1737903214673,1.38396227,685.02,684.05,0.26845564]
[1737903216875,1.38396227,685.02,684.12,1.09101233]
[1737903219276,1.38396227,685.02,683.9,0.29244041]
[1737903219277,1.38396227,685.02,684.13,1.09101233]
[1737903224181,1.38396227,685.02,684.14,0.26845301]
[1737903224878,1.38396227,685.02,684.19,1.09101233]
[1737903228679,1.38396227,685.02,684.23,1.09101233]
[1737903231885,1.38396227,685.02,684.24,1.09101233]
[1737903234589,1.38396227,685.02,684.21,1.09101233]
[1737903236883,1.38396227,685.02,684.18,1.09101233]
[1737903239595,1.38396227,685.02,684.19,1.09101233]
[1737903243598,1.38396227,685.02,684.17,1.09101233]
[1737903246396,1.38396227,685.02,684.2,1.09101233]
[1737903249497,1.38396227,685.02,684.16,1.09101233]
[1737903252305,1.38396227,685.02,684.17,1.09101233]
[1737903255502,1.38396227,685.02,684.11,1.09101233]
[1737903258309,1.38396227,685.02,684.12,1.09101233]
[1737903260907,1.38396227,685.02,684.11,1.09101233]
[1737903262509,1.38396227,685.02,684.12,0.268457]
[1737903264515,1.38396227,685.02,684.16,1.09101233]
[1737903267018,1.38396227,685.02,684.17,1.09101233]
[1737903270127,1.38396227,685.02,684.18,1.09101233]
[1737903272720,1.38396227,685.02,684.2,1.09101233]
[1737903275322,1.38396227,685.02,684.17,1.09101233]
[1737903279223,1.38396227,685.02,684.15,1.09101233]
[1737903281930,1.38396227,685.02,684.14,1.09101233]
[1737903285132,1.38396227,685.02,684.05,1.09101233]
[1737903291539,1.38396227,685.02,684.06,0.26846464]
[1737903292739,1.38396227,685.02,684.07,0.2684638]
[1737903293034,1.38396227,685.02,684.08,0.2684638]
[1737903293241,1.38396227,685.02,684.06,0.2684638]
[1737903293539,1.38396227,685.02,684.07,0.2684638]
[1737903293732,1.38396227,685.02,684.08,0.2684638]
[1737903293937,1.38396227,685.02,684.05,1.09101233]
[1737903294338,1.38396227,685.02,684.06,0.26846373]
[1737903294639,1.38396227,685.02,684.07,0.26846383]
[1737903294839,1.38396227,685.02,684.05,1.09101233]
[1737903294840,1.38396227,685.02,684.08,0.26846383]
[1737903295039,1.38396227,685.02,684.09,0.26846383]
[1737903295336,1.38396227,685.02,684.14,1.09101233]
[1737903297340,1.38396227,685.02,684.19,1.09101233]
[1737903300548,1.38396227,685.02,684.14,1.09101233]
[1737903303549,1.38396227,685.02,684.16,1.09101233]
[1737903309052,1.38396227,685.02,684.17,0.26846088]
[1737903309849,1.38396227,685.02,684.16,1.09101233]
[1737903310548,1.38396227,685.02,684.17,0.2684562]
[1737903310950,1.38396227,685.02,684.2,1.09101233]
[1737903313353,1.38396227,685.02,684.02,1.09101233]
[1737903316155,1.38396227,685.02,684.01,1.09101233]
[1737903319657,1.38396227,685.02,684.02,1.09101233]
[1737903321560,1.38396227,685.02,684.03,0.26846387]
[1737903322462,1.38396227,685.02,684.04,0.26846361]
[1737903322654,1.38396227,685.02,684.03,0.26846361]
[1737903322854,1.38396227,685.02,684.02,1.09101233]
[1737903323057,1.38396227,685.02,684.03,0.26845951]
[1737903324755,1.38396227,685.02,684.04,0.26845951]
[1737903324955,1.38396227,685.02,684.02,0.26845951]
[1737903325154,1.38396227,685.02,684.03,0.26845951]
[1737903325358,1.38396227,685.02,684.01,1.09101233]
[1737903325556,1.38396227,685.02,684.02,0.26845899]
[1737903326756,1.38396227,685.02,684.12,1.09101233]
[1737903329267,1.38396227,685.02,684.14,1.09101233]
[1737903331165,1.38396227,685.02,684.15,0.2684553]
[1737903332464,1.38396227,685.02,684.17,1.09101233]
[1737903332665,1.38396227,685.02,684.18,0.2684553]
[1737903333466,1.38396227,685.02,684.17,1.09101233]
[1737903333667,1.38396227,685.02,684.18,0.26845583]
[1737903336569,1.38396227,685.02,684.25,1.09101233]
[1737903346173,1.38396227,685.02,684.21,1.09101233]
[1737903357679,1.38396227,685.02,683.75,1.3092148]